bitfinex/quotes_BTCUSD_20240727
["timestamp","ask_amount","ask_price","bid_price","bid_amount"]
[1722055981943,0.20130055,68007.0,68006.0,1.46898095]
[1722055982095,0.20214055,68007.0,68006.0,1.46898095]
[1722055982442,0.20214055,68007.0,68006.0,1.44484766]
[1722055982688,0.26554055,68007.0,68006.0,1.44484766]
[1722055984067,0.26554055,68007.0,68006.0,1.4448449]
[1722055986019,0.24246961,68007.0,68006.0,1.4448449]
[1722055986240,0.13274,68007.0,68006.0,1.4448449]
[1722055987832,0.13274,68007.0,68006.0,1.44484479]
[1722055988059,0.05084,68007.0,68006.0,1.73893579]
[1722055988260,0.05084,68007.0,68006.0,1.44484479]
[1722055988508,0.05084,68007.0,68006.0,1.73893579]
[1722055989198,0.07391079,68007.0,68006.0,1.73893579]
[1722055989350,0.07391079,68007.0,68006.0,1.44484479]
[1722055990757,0.07391079,68007.0,68006.0,1.4448449]
[1722055991748,0.07391079,68007.0,68006.0,1.3683449]
[1722055992162,0.07391079,68007.0,68006.0,1.44484477]
[1722055994167,0.07391079,68007.0,68006.0,1.32267925]
[1722055994369,0.07391079,68007.0,68006.0,1.44484466]
[1722055994537,0.05084,68007.0,68006.0,1.44484466]
[1722055995146,0.05084,68007.0,68006.0,1.73893566]
[1722055995930,0.05084,68007.0,68006.0,1.82676895]
[1722055996255,0.05084,68007.0,68006.0,1.90546895]
[1722055996686,0.05084,68007.0,68006.0,2.04575555]
[1722055997054,0.05084,68007.0,68006.0,2.33984655]
[1722055997257,0.05084,68007.0,68006.0,2.25546895]
[1722055997490,0.05084,68007.0,68006.0,2.29575555]
[1722055997677,0.05084,68007.0,68006.0,2.54955096]
[1722055997922,0.05084,68007.0,68006.0,2.29574656]
[1722055999043,0.05084,68007.0,68006.0,2.58983756]
[1722055999179,0.05084,68007.0,68006.0,2.29574656]
[1722056000826,0.05084,68007.0,68006.0,2.17359014]
[1722056001135,0.05084,68007.0,68006.0,2.29574608]
[1722056001248,0.07390876,68007.0,68006.0,2.29574608]
[1722056001999,0.05084,68007.0,68006.0,2.29574608]
[1722056002819,0.05084,68007.0,68006.0,2.25545948]
[1722056004585,0.05084,68007.0,68006.0,2.11305948]
[1722056005194,0.07390893,68007.0,68006.0,1.86305948]
[1722056005734,0.05084,68007.0,68006.0,1.86305948]
[1722056006715,0.05084,68007.0,68006.0,1.78655948]
[1722056006924,0.05084,68007.0,68006.0,1.86305948]
[1722056007848,0.05084,68007.0,68006.0,1.86306012]
[1722056008831,0.07390893,68007.0,68006.0,1.86306012]
[1722056010050,0.05084,68007.0,68006.0,1.86306012]
[1722056011241,0.05084,68007.0,68006.0,1.86306011]
[1722056011832,0.13164,68007.0,68006.0,1.86306011]
[1722056013320,0.15470922,68007.0,68006.0,1.86306011]
[1722056013559,0.07390922,68007.0,68006.0,1.78656011]
[1722056014016,0.07390922,68007.0,68006.0,1.86306011]
[1722056014427,0.05084,68007.0,68006.0,1.74090354]
[1722056014554,0.05084,68007.0,68006.0,1.86306011]
[1722056017737,0.07390918,68007.0,68006.0,1.86306011]
[1722056018822,0.05084,68007.0,68006.0,1.86306011]
[1722056019162,0.05084,68007.0,68006.0,1.99836011]
[1722056019322,0.05084,68007.0,68006.0,2.03864671]
[1722056019739,0.05084,68007.0,68006.0,1.99836011]
[1722056020013,0.05084,68007.0,68006.0,2.03864671]
[1722056020351,0.05084,68007.0,68006.0,2.28864671]
[1722056021259,0.05084,68007.0,68006.0,2.16649014]
[1722056021473,0.05084,68007.0,68006.0,2.28864476]
[1722056022330,0.07390858,68007.0,68006.0,2.28864476]
[1722056024301,0.07390858,68007.0,68006.0,2.33270965]
[1722056024730,0.07390858,68007.0,68006.0,2.49912862]
[1722056025327,0.07390858,68007.0,68006.0,2.79321962]
[1722056025503,0.07390858,68007.0,68006.0,2.49912862]
[1722056026553,0.07390858,68007.0,68006.0,2.79321962]
[1722056027158,0.07390858,68007.0,68006.0,2.54321962]
[1722056028123,0.07390858,68007.0,68006.0,2.5431846]
[1722056029228,0.07390858,68007.0,68006.0,2.4990936]
[1722056029915,0.05084,68007.0,68006.0,2.4990936]
[1722056030384,0.05084,68007.0,68006.0,2.2490936]
[1722056031299,0.05084,68007.0,68006.0,1.87620354]
[1722056031596,0.05084,68007.0,68006.0,2.24945441]
[1722056033149,0.07390862,68007.0,68006.0,1.96055914]
[1722056033380,0.07390862,68007.0,68006.0,2.24957625]
[1722056034309,0.05084,68007.0,68006.0,2.20928965]
[1722056034539,0.05084,68007.0,68006.0,2.24957625]
[1722056034768,0.05084,68007.0,68006.0,2.20552857]
[1722056035024,0.05084,68007.0,68006.0,2.24960381]
[1722056035507,0.05084,68007.0,68006.0,2.20552857]
[1722056035746,0.00118984,68007.0,68006.0,2.88686859]
[1722056035977,0.00084,68008.0,68007.0,1.56222089]
[1722056036208,0.00084,68008.0,68007.0,2.78394176]
[1722056036440,0.00084,68008.0,68007.0,2.78285791]
[1722056037196,0.00084,68008.0,68007.0,2.78441211]
[1722056037431,0.00084,68008.0,68007.0,2.78285791]
[1722056037661,0.00084,68008.0,68007.0,2.78441211]
[1722056037902,0.00084,68008.0,68007.0,2.81241211]
[1722056038132,0.00084,68008.0,68007.0,2.81085791]
[1722056038360,0.00084,68008.0,68007.0,3.06283469]
[1722056038587,0.00084,68008.0,68007.0,3.06282941]
[1722056038821,0.00084,68008.0,68007.0,3.06127521]
[1722056039481,0.00084,68008.0,68007.0,3.06282941]
[1722056039712,0.00084,68008.0,68007.0,3.06127521]
[1722056039955,0.00084,68008.0,68007.0,3.06282941]
[1722056040201,0.00084,68008.0,68007.0,3.06127521]
[1722056041159,0.00084,68008.0,68007.0,3.06138637]
[1722056041364,0.00084,68008.0,68007.0,3.02109977]
[1722056041522,0.00084,68008.0,68007.0,3.06287747]
[1722056041729,0.02390801,68008.0,68007.0,3.02109977]
[1722056041933,0.00084,68008.0,68007.0,3.06294057]
[1722056042154,0.00084,68008.0,68007.0,3.06138637]
[1722056042562,0.00084,68008.0,68007.0,3.13944057]
[1722056042811,0.00084,68008.0,68007.0,3.06138637]
[1722056043017,0.00084,68008.0,68007.0,3.13788637]
[1722056044200,0.00084,68008.0,68007.0,3.03701731]
[1722056044536,0.00084,68008.0,68007.0,3.13993001]
[1722056044741,0.00084,68008.0,68007.0,3.13837581]
[1722056045240,0.02390805,68008.0,68007.0,3.13837581]
[1722056045440,0.02390805,68008.0,68007.0,3.2264706]
[1722056046025,0.02390805,68008.0,68007.0,3.14338106]
[1722056046211,0.00084,68008.0,68007.0,3.14338106]
[1722056046411,0.00084,68008.0,68007.0,3.14430506]
[1722056047495,0.00084,68008.0,68007.0,2.85423078]
[1722056047698,0.00084,68008.0,68007.0,3.10369851]
[1722056048751,0.00084,68008.0,68007.0,3.14398511]
[1722056049681,0.02390808,68008.0,68007.0,3.10369851]
[1722056050021,0.02390808,68008.0,68007.0,2.95879851]
[1722056050155,0.02390808,68008.0,68007.0,2.70879851]
[1722056050565,0.00084,68008.0,68007.0,2.70879851]
[1722056050802,0.00084,68008.0,68007.0,2.31673317]
[1722056051157,0.00084,68008.0,68007.0,2.70897931]
[1722056051681,0.00084,68008.0,68007.0,2.85267931]
[1722056051948,0.00084,68008.0,68007.0,2.89296591]
[1722056052123,0.00084,68008.0,68007.0,2.85267931]
[1722056052374,0.00084,68008.0,68007.0,2.89296591]
[1722056052522,0.00084,68008.0,68007.0,2.89452011]
[1722056053149,0.00084,68008.0,68007.0,3.14452011]
[1722056053528,0.00084,68008.0,68007.0,3.14296591]
[1722056053957,0.02390838,68008.0,68007.0,3.14296591]
[1722056054136,0.02390838,68008.0,68007.0,2.46079446]
[1722056054362,0.02390838,68008.0,68007.0,3.1445193]
[1722056055176,0.02390838,68008.0,68007.0,3.1042327]
[1722056055965,0.02390838,68008.0,68007.0,3.1445193]
[1722056056841,0.02390838,68008.0,68007.0,3.07844468]
[1722056057073,0.00084,68014.0,68013.0,1.12314289]
[1722056057297,0.00084,68014.0,68013.0,1.68961068]
[1722056058203,0.00084,68014.0,68013.0,1.64932408]
[1722056058427,0.00084,68014.0,68013.0,1.66332408]
[1722056058844,0.00084,68014.0,68013.0,1.67732408]
[1722056059311,0.00084,68014.0,68013.0,1.92732408]
[1722056062256,0.14754,68014.0,68013.0,1.67732408]
[1722056063380,0.17060778,68014.0,68013.0,1.67732408]
[1722056063582,0.14754,68014.0,68013.0,1.67732408]
[1722056064431,0.14754,68014.0,68013.0,1.67732323]
[1722056067822,0.14754,68014.0,68013.0,1.67732334]
[1722056069274,0.14754,68014.0,68013.0,1.68614409]
[1722056070502,0.17060811,68014.0,68013.0,1.68614409]
[1722056071250,0.17060811,68014.0,68013.0,1.56399672]
[1722056071440,0.17060811,68014.0,68013.0,1.6861441]
[1722056071770,0.14754,68014.0,68013.0,1.6861441]
[1722056074808,0.14754,68014.0,68013.0,1.68614442]
[1722056075104,0.17060811,68014.0,68013.0,1.68614442]
[1722056075252,0.14754,68014.0,68013.0,1.68614442]
[1722056075850,0.14754,68014.0,68013.0,1.36795013]
[1722056076278,0.19386961,68014.0,68013.0,1.36795013]
[1722056077125,0.14754,68014.0,68013.0,1.36795013]
[1722056077486,0.19386961,68014.0,68013.0,1.36795013]
[1722056077933,0.14754,68014.0,68013.0,1.36795013]
[1722056078135,0.14754,68014.0,68013.0,1.36795145]
[1722056078541,0.17060815,68014.0,68013.0,1.36795145]
[1722056078741,0.21693776,68014.0,68013.0,1.36795145]
[1722056079520,0.14754,68014.0,68013.0,1.36795145]
[1722056081173,0.19386961,68014.0,68013.0,1.36795145]
[1722056081512,0.14754,68014.0,68013.0,1.36795222]
[1722056081937,0.19586961,68014.0,68013.0,1.36795222]
[1722056082157,0.19386961,68014.0,68013.0,1.36795222]
[1722056082779,0.21693776,68014.0,68013.0,1.36795222]
[1722056084047,0.19386961,68014.0,68013.0,1.36795222]
[1722056084955,0.19386961,68014.0,68013.0,1.24580243]
[1722056085126,0.19386961,68014.0,68013.0,1.36795221]
[1722056087359,0.21693776,68014.0,68013.0,1.36795221]
[1722056087695,0.19386961,68014.0,68013.0,1.36795221]
[1722056088452,0.19386961,68014.0,68013.0,1.36795243]
[1722056090867,0.21693776,68014.0,68013.0,1.36795243]
[1722056091179,0.19386961,68014.0,68013.0,1.36795243]
[1722056093501,0.19386961,68014.0,68013.0,1.24580243]
[1722056094376,0.19386961,68014.0,68013.0,1.36795243]
[1722056094554,0.21693776,68014.0,68013.0,1.36795243]
[1722056095695,0.19386961,68014.0,68013.0,1.36795243]
[1722056098252,0.19386961,68014.0,68013.0,1.07389143]
[1722056098566,0.19586961,68014.0,68013.0,0.63280043]
[1722056098768,0.2189378,68014.0,68013.0,0.51065043]
[1722056099177,0.19586961,68014.0,68013.0,0.65768043]
[1722056099384,0.38512011,68014.0,68013.0,0.48265043]
[1722056099555,1.12026211,68014.0,68013.0,0.33757]
[1722056099761,1.16366281,68014.0,68013.0,0.33757]
[1722056100394,1.16366281,68014.0,68013.0,0.32357]
[1722056101535,1.45771981,68014.0,68013.0,0.33757]
[1722056101771,1.45771981,68014.0,68013.0,0.35157]
[1722056101971,1.45771981,68014.0,68013.0,0.33757]
[1722056102292,1.45771981,68014.0,68013.0,0.30806]
[1722056102501,1.48078965,68014.0,68013.0,0.32206]
[1722056102704,1.43738895,68014.0,68013.0,0.32206]
[1722056103112,1.47787715,68014.0,68013.0,0.30806]
[1722056103266,1.47787715,68014.0,68013.0,0.29406]
[1722056103605,1.47787715,68014.0,68013.0,0.32206]
[1722056104067,1.45480731,68014.0,68013.0,0.32206]
[1722056106574,1.50480731,68014.0,68013.0,0.32206]
[1722056106770,1.45480731,68014.0,68013.0,0.32206]
[1722056106974,1.47787896,68014.0,68013.0,0.32206]
[1722056107415,1.45480731,68014.0,68013.0,0.32206]
[1722056107830,1.45480731,68014.0,68013.0,0.30806]
[1722056108506,1.50480731,68014.0,68013.0,0.30806]
[1722056108706,1.4064777,68014.0,68013.0,0.30806]
[1722056108901,1.50480731,68014.0,68013.0,0.31806]
[1722056109334,1.52780731,68014.0,68013.0,0.30806]
[1722056109495,1.82186431,68014.0,68013.0,0.29406]
[1722056109700,1.82186431,68014.0,68013.0,0.30206]
[1722056109903,1.96691467,68014.0,68013.0,0.30206]
[1722056110062,1.96691467,68014.0,68013.0,0.30906]
[1722056110266,1.96691467,68014.0,68013.0,0.30106]
[1722056110525,1.82186431,68014.0,68013.0,0.30706]
[1722056110742,1.84493541,68014.0,68013.0,0.30706]
[1722056111515,1.84493541,68014.0,68013.0,0.30006]
[1722056111516,1.88266306,68014.0,68013.0,0.30006]
[1722056111664,1.88266306,68014.0,68013.0,0.30506]
[1722056111877,1.85959196,68014.0,68013.0,0.30506]
[1722056112084,1.85959196,68014.0,68013.0,0.29906]
[1722056112294,1.85959196,68014.0,68013.0,0.30306]
[1722056112522,1.85959196,68014.0,68013.0,0.29806]
[1722056112939,1.85959196,68014.0,68013.0,0.29406]
[1722056112940,1.86059196,68014.0,68013.0,0.29406]
[1722056113144,1.95056848,68014.0,68013.0,0.29406]
[1722056113787,1.94856848,68014.0,68013.0,0.29406]
[1722056113960,1.95056848,68014.0,68013.0,0.29406]
[1722056114162,1.82486431,68014.0,68013.0,0.29406]
[1722056114852,1.82386431,68014.0,68013.0,0.29406]
[1722056115029,1.82486431,68014.0,68013.0,0.29406]
[1722056115282,1.84793698,68014.0,68013.0,0.29406]
[1722056115484,1.82486431,68014.0,68013.0,0.29406]
[1722056115696,1.97512388,68014.0,68013.0,0.29406]
[1722056117025,1.98399788,68014.0,68013.0,0.29406]
[1722056117479,2.22162537,68014.0,68013.0,0.29406]
[1722056117683,2.0713658,68014.0,68013.0,0.29406]
[1722056117878,2.03373831,68014.0,68013.0,0.29406]
[1722056118222,2.0714528,68014.0,68013.0,0.29406]
[1722056118735,2.09452555,68014.0,68013.0,0.29406]
[1722056119883,2.0714528,68014.0,68013.0,0.29406]
[1722056120450,2.3655098,68014.0,68013.0,0.29406]
[1722056120653,2.22171237,68014.0,68013.0,0.29406]
[1722056120859,2.0695512,68014.0,68013.0,0.29406]
[1722056121380,2.06954237,68014.0,68013.0,0.29406]
[1722056122068,2.12848137,68014.0,68013.0,0.29406]
[1722056123442,2.15155424,68014.0,68013.0,0.29406]
[1722056124626,2.15161551,68014.0,68013.0,0.29406]
[1722056124989,2.23311851,68014.0,68013.0,0.29406]
[1722056125204,2.21004564,68014.0,68013.0,0.29406]
[1722056126304,2.55410264,68014.0,68013.0,0.29406]
[1722056126577,2.65410264,68014.0,68013.0,0.29406]
[1722056126776,2.74199467,68014.0,68013.0,0.29406]
[1722056127183,2.65410264,68014.0,68013.0,0.29406]
[1722056127964,2.63940973,68014.0,68013.0,0.29406]
[1722056128164,2.76458109,68014.0,68013.0,0.29406]
[1722056128804,2.0511377,68014.0,68013.0,0.29406]
[1722056129017,2.3276377,68014.0,68013.0,0.29406]
[1722056131383,2.32887401,68014.0,68013.0,0.29406]
[1722056132819,2.00237401,68014.0,68013.0,0.29406]
[1722056133020,2.07887401,68014.0,68013.0,0.29406]
[1722056133427,2.05579999,68014.0,68013.0,0.29406]
[1722056134642,2.01727571,68014.0,68013.0,0.29406]
[1722056134866,2.0560303,68014.0,68013.0,0.29406]
[1722056135484,2.14402379,68014.0,68013.0,0.29406]
[1722056135866,2.19402379,68014.0,68013.0,0.29406]
[1722056136516,2.1060303,68014.0,68013.0,0.29406]
[1722056136666,2.12910377,68014.0,68013.0,0.29406]
[1722056138275,2.12934939,68014.0,68013.0,0.29406]
[1722056139548,2.07934939,68014.0,68013.0,0.29406]
[1722056140175,1.65037855,68014.0,68013.0,0.29406]
[1722056140961,1.64937855,68014.0,68013.0,0.29406]
[1722056141162,1.53915399,68014.0,68013.0,0.29806]
[1722056141668,1.53956066,68014.0,68013.0,0.29406]
[1722056141870,1.53756066,68014.0,68013.0,0.30106]
[1722056142293,1.51448719,68014.0,68013.0,0.30406]
[1722056142711,1.51448719,68014.0,68013.0,0.30106]
[1722056143085,1.51448719,68014.0,68013.0,0.30706]
[1722056144962,1.47508031,68014.0,68013.0,0.30706]
[1722056145172,1.51458523,68014.0,68013.0,0.30706]
[1722056145634,1.53765765,68014.0,68013.0,0.30706]
[1722056146004,1.51458523,68014.0,68013.0,0.30706]
[1722056148273,1.47508031,68014.0,68013.0,0.30706]
[1722056148477,1.51456257,68014.0,68013.0,0.30706]
[1722056149199,1.53763496,68014.0,68013.0,0.30706]
[1722056151447,1.51456257,68014.0,68013.0,0.30706]
[1722056151879,1.51578274,68014.0,68013.0,0.30706]
[1722056154329,1.99823974,68014.0,68013.0,0.30706]
[1722056154531,2.02123974,68014.0,68013.0,0.30706]
[1722056155326,2.02100873,68014.0,68013.0,0.30706]
[1722056155631,2.1712683,68014.0,68013.0,0.30706]
[1722056158565,2.17056905,68014.0,68013.0,0.30706]
[1722056158884,2.00361037,68014.0,68013.0,0.30706]
[1722056159079,2.04338254,68014.0,68013.0,0.30706]
[1722056161148,2.00361037,68014.0,68013.0,0.30706]
[1722056161353,2.58723794,68014.0,68013.0,0.30706]
[1722056161561,2.29318094,68014.0,68013.0,0.30706]
[1722056161985,2.44344051,68014.0,68013.0,0.30706]
[1722056162437,2.44344051,68014.0,68013.0,0.30106]
[1722056162753,2.25561037,68014.0,68013.0,0.29406]
[1722056162988,2.37267315,68014.0,68013.0,0.29406]
[1722056163835,2.34960009,68014.0,68013.0,0.29406]
[1722056164792,2.34977843,68014.0,68013.0,0.29406]
[1722056166229,2.42509814,68014.0,68013.0,0.29406]
[1722056167162,2.44817145,68014.0,68013.0,0.29406]
[1722056167397,2.38460994,68014.0,68013.0,0.29406]
[1722056167600,2.41996883,68014.0,68013.0,0.29406]
[1722056167827,2.41996886,68014.0,68013.0,0.29406]
[1722056168106,2.42003363,68014.0,68013.0,0.29406]
[1722056170538,2.44310694,68014.0,68013.0,0.29406]
[1722056171434,2.40330105,68014.0,68013.0,0.29406]
[1722056171690,2.44313364,68014.0,68013.0,0.29406]
[1722056173563,2.44313364,68014.0,68013.0,0.294984]
[1722056173770,2.44397364,68014.0,68013.0,0.294984]
[1722056174981,2.73803064,68014.0,68013.0,0.294984]
[1722056175437,2.44397364,68014.0,68013.0,0.294984]
[1722056176220,2.71495733,68014.0,68013.0,0.294984]
[1722056179547,2.73803104,68014.0,68013.0,0.294984]
[1722056181863,2.66275156,68014.0,68013.0,0.294984]
[1722056183401,2.36869456,68014.0,68013.0,0.294984]
[1722056183765,2.30719456,68014.0,68013.0,0.294984]
[1722056185406,2.2840943,68014.0,68013.0,0.294984]
[1722056185526,2.5781513,68014.0,68013.0,0.294984]
[1722056186093,2.2840943,68014.0,68013.0,0.294984]
[1722056186851,2.40764255,68014.0,68013.0,0.294984]
[1722056187705,2.76569955,68014.0,68013.0,0.294984]
[1722056188688,2.78852053,68014.0,68013.0,0.294984]
[1722056188891,2.76544722,68014.0,68013.0,0.294984]
[1722056192092,2.72585328,68014.0,68013.0,0.294984]
[1722056192288,2.78817043,68014.0,68013.0,0.294984]
[1722056193566,2.76509712,68014.0,68013.0,0.294984]
[1722056195742,2.76492422,68014.0,68013.0,0.294984]
[1722056196253,2.91391954,68014.0,68013.0,0.294984]
[1722056196469,3.28145235,68014.0,68013.0,0.294984]
[1722056196672,2.83840003,68014.0,68013.0,0.294984]
[1722056199064,2.83885872,68014.0,68013.0,0.294984]
[1722056200328,2.86193203,68014.0,68013.0,0.294984]
[1722056202291,2.62537834,68014.0,68013.0,0.294984]
[1722056202478,2.59708336,68014.0,68013.0,0.294984]
[1722056204467,2.22652636,68014.0,68013.0,0.294984]
[1722056204692,2.30302636,68014.0,68013.0,0.294984]
[1722056205837,2.30321642,68014.0,68013.0,0.294984]
[1722056206061,2.28014311,68014.0,68013.0,0.294984]
[1722056207235,2.28014311,68014.0,68013.0,0.434084]
[1722056208039,2.20364311,68014.0,68013.0,0.434084]
[1722056208250,2.28014311,68014.0,68013.0,0.434084]
[1722056209089,2.16734803,68014.0,68013.0,0.434084]
[1722056209288,2.28085255,68014.0,68013.0,0.434084]
[1722056212003,2.20610685,68014.0,68013.0,0.434084]
[1722056212449,2.16654404,68014.0,68013.0,0.434084]
[1722056212618,2.20595594,68014.0,68013.0,0.434084]
[1722056214535,2.22902917,68014.0,68013.0,0.434084]
[1722056214736,2.30283994,68014.0,68013.0,0.434084]
[1722056215152,2.27976671,68014.0,68013.0,0.434084]
[1722056215777,2.16654404,68014.0,68013.0,0.434084]
[1722056215957,2.27986568,68014.0,68013.0,0.434084]
[1722056218583,2.30293891,68014.0,68013.0,0.434084]
[1722056219243,2.30296581,68014.0,68013.0,0.434084]
[1722056219453,2.27989258,68014.0,68013.0,0.434084]
[1722056220293,2.27989258,68014.0,68013.0,0.356584]
[1722056221662,2.16654404,68014.0,68013.0,0.356584]
[1722056221869,2.27976589,68014.0,68013.0,0.356584]
[1722056222500,2.30283912,68014.0,68013.0,0.356584]
[1722056223034,2.3028496,68014.0,68013.0,0.356584]
[1722056225078,2.26829467,68014.0,68013.0,0.356584]
[1722056225313,2.26834015,68014.0,68013.0,0.356584]
[1722056226310,2.30301447,68014.0,68013.0,0.356584]
[1722056227526,2.30301447,68014.0,68013.0,0.294984]
[1722056228679,2.30277048,68014.0,68013.0,0.294984]
[1722056229842,2.30277048,68014.0,68013.0,0.244984]
[1722056232242,2.30293934,68014.0,68013.0,0.244984]
[1722056235421,2.33999623,68014.0,68013.0,0.244984]
[1722056235621,2.45320496,68014.0,68013.0,0.244984]
[1722056236112,2.43013173,68014.0,68013.0,0.244984]
[1722056237162,2.27987216,68014.0,68013.0,0.244984]
[1722056239029,2.16666343,68014.0,68013.0,0.244984]
[1722056239233,2.27987543,68014.0,68013.0,0.244984]
[1722056239395,2.16666343,68014.0,68013.0,0.244984]
[1722056239602,2.27987543,68014.0,68013.0,0.244984]
[1722056239998,2.430135,68014.0,68013.0,0.244984]
[1722056240540,2.43012847,68014.0,68013.0,0.244984]
[1722056243565,2.4532017,68014.0,68013.0,0.244984]
[1722056243966,2.43012847,68014.0,68013.0,0.244984]
[1722056245966,2.33338118,68014.0,68013.0,0.244984]
[1722056246167,2.42971079,68014.0,68013.0,0.244984]
[1722056247341,2.45278402,68014.0,68013.0,0.244984]
[1722056247742,2.42971079,68014.0,68013.0,0.244984]
[1722056249461,2.316923,68014.0,68013.0,0.244984]
[1722056249619,2.42967417,68014.0,68013.0,0.244984]
[1722056251039,2.4527474,68014.0,68013.0,0.244984]
[1722056251451,2.42967417,68014.0,68013.0,0.244984]
[1722056252453,2.2794146,68014.0,68013.0,0.244984]
[1722056252881,2.16666343,68014.0,68013.0,0.244984]
[1722056253054,2.27946117,68014.0,68013.0,0.244984]
[1722056254752,2.3025344,68014.0,68013.0,0.244984]
[1722056256207,2.22893766,68014.0,68013.0,0.244984]
[1722056256525,2.22887714,68014.0,68013.0,0.244984]
[1722056256687,2.15237714,68014.0,68013.0,0.244984]
[1722056257008,2.22887714,68014.0,68013.0,0.244984]
[1722056257210,2.07803281,68014.0,68013.0,0.387384]
[1722056257510,1.82937714,68014.0,68013.0,0.387384]
[1722056257722,1.53532014,68014.0,68013.0,0.387384]
[1722056257915,0.83833214,68014.0,68013.0,0.387384]
[1722056258073,0.39724714,68014.0,68013.0,0.387384]
[1722056258288,0.33503343,68014.0,68013.0,0.387384]
[1722056258641,0.39925321,68014.0,68013.0,0.387384]
[1722056258889,0.22676482,68014.0,68013.0,0.387384]
[1722056259120,0.22476482,68014.0,68013.0,0.387384]
[1722056259294,0.22476482,68014.0,68013.0,0.394384]
[1722056259502,0.22476482,68014.0,68013.0,0.393384]
[1722056259706,0.22476482,68014.0,68013.0,0.540414]
[1722056259921,0.22476482,68014.0,68013.0,0.5559682]
[1722056260142,0.27309443,68014.0,68013.0,0.8440292]
[1722056260279,0.1900905,68014.0,68013.0,0.99273457]
[1722056260482,0.23642011,68014.0,68013.0,1.28679557]
[1722056261273,0.23642011,68014.0,68013.0,1.30079557]
[1722056261274,0.25948999,68014.0,68013.0,1.30079557]
[1722056261474,0.23842011,68014.0,68013.0,1.30079557]
[1722056261690,0.1920905,68014.0,68013.0,1.00673457]
[1722056261889,0.23842011,68014.0,68013.0,1.00673457]
[1722056263637,0.23842011,68014.0,68013.0,0.71267357]
[1722056264839,0.26149003,68014.0,68013.0,0.71267357]
[1722056265998,0.23842011,68014.0,68013.0,0.71267357]
[1722056266243,0.23842011,68014.0,68013.0,1.00673457]
[1722056269208,0.26149011,68014.0,68013.0,1.00673457]
[1722056269613,0.25949011,68014.0,68013.0,1.00673457]
[1722056269944,0.07023961,68014.0,68013.0,1.00673457]
[1722056270083,0.02391,68014.0,68013.0,1.00673457]
[1722056270284,0.07023961,68014.0,68013.0,1.00673457]
[1722056270493,0.23642011,68014.0,68013.0,1.00673457]
[1722056273472,0.23642011,68014.0,68013.0,1.00828877]
[1722056273713,0.07023959,68014.0,68013.0,1.30079557]
[1722056274088,0.04716961,68014.0,68013.0,1.30079557]
[1722056275195,0.07303632,68014.0,68013.0,1.30079557]
[1722056275400,0.23642011,68014.0,68013.0,1.30079557]
[1722056275711,0.04716961,68014.0,68013.0,1.30079557]
[1722056277184,0.07023963,68014.0,68013.0,1.30079557]
[1722056277384,0.04716961,68014.0,68013.0,1.30079557]
[1722056279125,0.04916961,68014.0,68013.0,1.00673457]
[1722056279325,0.04916961,68014.0,68013.0,0.71267357]
[1722056279532,0.04916961,68014.0,68013.0,1.00673457]
[1722056281272,0.04916961,68014.0,68013.0,0.71267357]
[1722056281695,0.04916961,68014.0,68013.0,1.00673457]
[1722056282095,0.04916961,68014.0,68013.0,0.415384]
[1722056282096,0.23842011,68014.0,68013.0,0.415384]
[1722056282529,0.38544811,68014.0,68013.0,0.415384]
[1722056282979,0.23842011,68014.0,68013.0,0.415384]
[1722056283644,0.38544811,68014.0,68013.0,0.415384]
[1722056285030,0.26149032,68014.0,68013.0,0.415384]
[1722056285397,0.23842011,68014.0,68013.0,0.415384]
[1722056286667,0.27958123,68014.0,68013.0,0.415384]
[1722056288806,0.30265151,68014.0,68013.0,0.415384]
[1722056289581,0.27958123,68014.0,68013.0,0.415384]
[1722056293001,0.30265158,68014.0,68013.0,0.415384]
[1722056294017,0.27958123,68014.0,68013.0,0.415384]
[1722056296440,0.42660923,68014.0,68013.0,0.415384]
[1722056297226,0.44967972,68014.0,68013.0,0.272984]
[1722056297647,0.42660923,68014.0,68013.0,0.272984]
[1722056298794,0.50380923,68014.0,68013.0,0.272984]
[1722056298984,0.79786623,68014.0,68013.0,0.272984]
[1722056299183,0.72066623,68014.0,68013.0,0.272984]
[1722056299715,0.42660923,68014.0,68013.0,0.272984]
[1722056299919,0.72066623,68014.0,68013.0,0.272984]
[1722056300483,0.72066623,68014.0,68013.0,0.354884]
[1722056300892,0.74373651,68014.0,68013.0,0.354884]
[1722056301708,0.74373651,68014.0,68013.0,0.272984]
[1722056305989,0.72066623,68014.0,68013.0,0.272984]
[1722056307732,0.67433662,68014.0,68013.0,0.272984]
[1722056308370,0.72066623,68014.0,68013.0,0.272984]
[1722056308566,0.67433662,68014.0,68013.0,0.272984]
[1722056308770,0.72066623,68014.0,68013.0,0.272984]
[1722056309343,0.74373651,68014.0,68013.0,0.272984]
[1722056309540,0.72066623,68014.0,68013.0,0.272984]
[1722056309745,0.72066623,68014.0,68013.0,0.333284]
[1722056313024,0.74373651,68014.0,68013.0,0.333284]
[1722056314256,0.72066623,68014.0,68013.0,0.333284]
[1722056314409,1.01472323,68014.0,68013.0,0.272984]
[1722056316865,1.74923723,68014.0,68013.0,0.272984]
[1722056317061,1.78775644,68014.0,68013.0,0.272984]
[1722056317268,1.83775644,68014.0,68013.0,0.272984]
[1722056317485,1.97016904,68014.0,68013.0,0.272984]
[1722056317696,1.83775644,68014.0,68013.0,0.258984]
[1722056317866,1.92017157,68014.0,68013.0,0.258984]
[1722056318079,1.97017157,68014.0,68013.0,0.244984]
[1722056318244,1.92017157,68014.0,68013.0,0.257984]
[1722056318593,1.83322896,68014.0,68013.0,0.257984]
[1722056318944,1.83322896,68014.0,68013.0,0.268984]
[1722056320350,1.83402956,68014.0,68013.0,0.268984]
[1722056320726,1.86155704,68014.0,68013.0,0.268984]
[1722056321143,1.85632048,68014.0,68013.0,0.268984]
[1722056321963,1.87939251,68014.0,68013.0,0.268984]
[1722056323245,1.82939251,68014.0,68013.0,0.268984]
[1722056324078,1.82911024,68014.0,68013.0,0.268984]
[1722056324444,1.87911024,68014.0,68013.0,0.268984]
[1722056326071,1.85603821,68014.0,68013.0,0.268984]
[1722056327376,2.00629778,68014.0,68013.0,0.268984]
[1722056328284,1.85603821,68014.0,68013.0,0.268984]
[1722056329484,1.87911024,68014.0,68013.0,0.268984]
[1722056329684,1.85603821,68014.0,68013.0,0.268984]
[1722056330507,1.80594971,68014.0,68013.0,0.268984]
[1722056332556,1.82902174,68014.0,68013.0,0.268984]
[1722056333934,1.82907899,68014.0,68013.0,0.268984]
[1722056334177,1.80600696,68014.0,68013.0,0.268984]